bitfinex-derivatives/quotes_SOLF0:USTF0_20241227
["timestamp","ask_amount","ask_price","bid_price","bid_amount"]
[1735342866302,2.7304,183.39,183.36,8.22810756]
[1735342868902,2.7306,183.38,183.36,8.22810756]
[1735342869506,2.7306,183.37,183.35,3.24]
[1735342870802,8.22810756,183.43,183.35,3.24]
[1735342871104,9.79220756,183.47,183.4,8.22810756]
[1735342871695,8.22810756,183.47,183.4,8.22810756]
[1735342871901,8.22810756,183.47,183.4,11.42810756]
[1735342872400,2.7296,183.45,183.4,11.42810756]
[1735342873196,2.7296,183.45,183.42,8.22810756]
[1735342875007,2.7296,183.44,183.42,8.22810756]
[1735342875208,8.22810756,183.47,183.34,7.57110382]
[1735342875404,8.22810756,183.47,183.39,8.22810756]
[1735342875705,2.7299,183.43,183.39,8.22810756]
[1735342877114,4.7889,183.53,183.41,8.22810756]
[1735342877408,8.22810756,183.49,183.42,3.2]
[1735342877805,2.7294,183.46,183.42,3.2]
[1735342878000,8.22810756,183.49,183.42,3.2]
[1735342878899,59.42085041,183.58,183.43,8.22810756]
[1735342879106,8.22810756,183.5,183.43,8.22810756]
[1735342879308,8.22810756,183.48,183.42,3.2]
[1735342879507,8.22810756,183.49,183.42,3.2]
[1735342879710,8.22810756,183.47,183.42,3.2]
[1735342880212,8.22810756,183.5,183.42,3.2]
[1735342880411,8.22810756,183.5,183.43,8.22810756]
[1735342881211,2.7296,183.45,183.43,8.22810756]
[1735342881707,1.5801,183.55,183.43,8.22810756]
[1735342882015,8.22810756,183.51,183.43,8.22810756]
[1735342882411,8.22810756,183.49,183.42,3.2]
[1735342882613,8.22810756,183.47,183.42,3.2]
[1735342883207,2.7285,183.52,183.42,3.2]
[1735342883408,8.22810756,183.48,183.42,3.2]
[1735342884414,2.7297,183.44,183.42,3.2]
[1735342888411,3.2,183.53,183.43,8.22810756]
[1735342888614,1.5801,183.55,183.43,8.22810756]
[1735342888615,1.5801,183.55,183.47,8.22810756]
[1735342888815,147.18903585,183.6,183.51,8.22810756]
[1735342889015,147.18903585,183.6,183.53,8.22810756]
[1735342889016,2.7278,183.56,183.53,8.22810756]
[1735342892721,3.1946,183.63,183.55,8.22810756]
[1735342892919,8.22810756,183.62,183.55,8.22810756]
[1735342893120,8.22810756,183.62,183.56,3.2]
[1735342893320,2.7275,183.58,183.56,3.2]
[1735342893923,2.7273,183.6,183.57,8.22810756]
[1735342894819,2.7271,183.61,183.59,8.22810756]
[1735342895225,1.94980635,183.65,183.59,8.22810756]
[1735342895423,2.7269,183.63,183.61,8.22810756]
[1735342895622,1.94980635,183.65,183.61,11.42810756]
[1735342895823,3.2361,183.69,183.63,8.22810756]
[1735342896023,3.2361,183.69,183.61,3.2]
[1735342896226,8.22810756,183.64,183.56,3.2]
[1735342896428,8.22810756,183.64,183.58,8.22810756]
[1735342896624,2.7269,183.63,183.58,8.22810756]
[1735342896829,8.22810756,183.64,183.58,8.22810756]
[1735342898226,8.22810756,183.66,183.58,8.22810756]
[1735342899033,2.7271,183.61,183.58,8.22810756]
[1735342900038,8.22810756,183.66,183.58,8.22810756]
[1735342900934,3.2361,183.69,183.58,8.22810756]
[1735342901135,8.22810756,183.66,183.6,8.22810756]
[1735342901739,2.7268,183.63,183.6,8.22810756]
[1735342902639,2.7266,183.65,183.62,8.22810756]
[1735342902939,2.7266,183.65,183.62,11.42810756]
[1735342903133,8.22810756,183.68,183.62,11.42810756]
[1735342903736,3.2,183.74,183.64,8.22810756]
[1735342903938,8.22810756,183.74,183.66,8.22810756]
[1735342904240,8.22810756,183.76,183.7,8.22810756]
[1735342904831,2.7252,183.74,183.7,8.22810756]
[1735342905030,3.2541,183.77,183.7,8.22810756]
[1735342905539,2.7253,183.73,183.72,8.22810756]
[1735342905936,59.42085041,183.85,183.72,8.22810756]
[1735342905937,3.2,183.85,183.72,11.42810756]
[1735342906138,8.22810756,183.78,183.72,8.22810756]
[1735342906330,8.22810756,183.78,183.71,3.2]
[1735342906741,2.7254,183.73,183.71,3.2]
[1735342907336,2.725,183.76,183.72,8.22810756]
[1735342908542,2.7246,183.78,183.74,8.22810756]
[1735342908741,2.7246,183.78,183.76,8.22810756]
[1735342908942,2.7246,183.78,183.76,11.42810756]
[1735342909539,2.7243,183.8,183.76,11.42810756]
[1735342909933,13.09060756,183.84,183.76,3.2]
[1735342910242,8.22810756,183.8,183.73,8.22810756]
[1735342910942,2.725,183.75,183.73,8.22810756]
[1735342912841,2.7251,183.74,183.73,8.22810756]
[1735342913040,8.22810756,183.8,183.71,3.2]
[1735342913344,8.22810756,183.8,183.72,8.22810756]
[1735342913643,2.7253,183.73,183.72,8.22810756]
[1735342914340,8.22810756,183.8,183.72,8.22810756]
[1735342914539,4.8625,183.84,183.74,8.22810756]
[1735342914738,8.22810756,183.81,183.74,8.22810756]
[1735342916547,2.7248,183.76,183.74,8.22810756]
[1735342923244,2.7247,183.77,183.74,8.22810756]
[1735342923449,2.7247,183.77,183.76,8.22810756]
[1735342923945,5.4463,183.88,183.76,8.22810756]
[1735342924147,9.04304151,185.22,183.73,3.2]
[1735342924148,8.22810756,183.87,183.81,8.22810756]
[1735342924543,2.724,183.82,183.81,8.22810756]
[1735342924750,13.17310756,183.89,183.81,8.22810756]
[1735342925451,13.17310756,183.89,183.83,8.22810756]
[1735342926348,1.613,183.89,183.83,8.22810756]
[1735342926550,48.50639533,183.9,183.83,8.22810756]
[1735342927149,48.50639533,183.9,183.85,8.22810756]
[1735342928452,2.7235,183.86,183.85,8.22810756]
[1735342929252,2.7235,183.86,183.85,11.44810756]
[1735342929953,3.22,183.99,183.85,11.44810756]
[1735342930156,8.22810756,183.95,183.88,8.22810756]
[1735342930350,4.8996,184.0,183.88,8.22810756]
[1735342930544,2.7227,183.91,183.88,8.22810756]
[1735342931555,2.7227,183.91,183.9,8.22810756]
[1735342931756,2.7227,183.91,183.9,11.44810756]
[1735342934658,2.7223,183.94,183.9,11.44810756]
[1735342935055,4.8996,184.0,183.92,8.22810756]
[1735342935253,5.4402,184.09,183.95,8.22810756]
[1735342935457,8.22810756,184.04,183.97,8.22810756]
[1735342935658,8.22810756,184.04,183.98,3.22]
[1735342936060,2.7214,183.99,183.98,3.22]
[1735342936456,8.22810756,184.04,183.98,3.22]
[1735342936658,2.7214,184.0,183.98,3.22]
[1735342937157,2.7214,183.99,183.98,3.22]
[1735342937962,12.7815078,184.07,183.98,3.22]
[1735342938268,2.7214,183.99,183.98,3.22]
[1735342938957,2.7213,184.0,183.98,3.22]
[1735342939361,12.7815078,184.07,183.98,3.22]
[1735342939562,2.7214,183.99,183.98,3.22]
[1735342940663,16.0015078,184.04,183.87,30.28441528]
[1735342940859,16.0015078,184.04,183.9,12.7815078]
[1735342941460,12.7815078,183.98,183.87,30.28441528]
[1735342941664,4.7614,183.97,183.87,30.28441528]
[1735342941857,2.7231,183.88,183.87,30.28441528]
[1735342942262,12.7815078,183.95,183.84,12.7815078]
[1735342943264,2.7234,183.86,183.83,3.22]
[1735342944865,12.7815078,183.95,183.83,3.22]
[1735342945167,2.7235,183.85,183.83,3.22]
[1735342945355,12.7815078,183.92,183.81,12.7815078]
[1735342945561,12.7815078,183.92,183.81,3.22]
[1735342946064,2.723,183.89,183.81,3.22]
[1735342946261,12.7815078,183.92,183.81,3.22]
[1735342946464,12.7815078,183.92,183.81,16.0015078]
[1735342946664,2.7233,183.87,183.81,16.0015078]
[1735342947462,2.7234,183.86,183.81,16.0015078]
[1735342949163,12.7815078,183.92,183.81,16.0015078]
[1735342949366,2.7236,183.85,183.81,16.0015078]
[1735342949768,12.7815078,183.92,183.81,16.0015078]
[1735342949970,12.7815078,183.92,183.82,2.7239]
[1735342950567,2.7233,183.87,183.81,18.7256078]
[1735342951067,12.7815078,183.92,183.81,12.7815078]
[1735342951262,12.7815078,183.92,183.82,3.22]
[1735342951459,2.7237,183.84,183.82,3.22]
[1735342951658,12.7815078,183.92,183.82,3.22]
[1735342952059,2.7237,183.84,183.82,3.22]
[1735342952262,17.5429078,183.97,183.82,3.22]
[1735342952463,17.5429078,183.97,183.86,12.7815078]
[1735342952665,4.7614,183.97,183.87,3.22]
[1735342953169,2.7222,183.94,183.87,3.22]
[1735342953467,2.7222,183.94,183.88,2.7229]
[1735342953763,2.7224,183.93,183.87,6.3283]
[1735342953968,14.3219078,183.97,183.87,3.22]
[1735342955367,2.7231,183.88,183.87,3.22]
[1735342959166,3.2731,183.93,183.87,3.22]
[1735342959369,2.7229,183.9,183.87,3.22]
[1735342959766,2.723,183.89,183.87,3.22]
[1735342959967,3.2731,183.93,183.87,3.22]
[1735342961374,2.7231,183.88,183.87,3.22]
[1735342971175,3.2731,183.93,183.8,12.7815078]
[1735342971376,2.7239,183.83,183.81,3.22]
[1735342972280,2.7239,183.82,183.81,3.22]
[1735342974283,2.7239,183.82,183.8,12.7815078]
[1735342974482,2.7239,183.82,183.81,3.22]
[1735342977782,2.7239,183.82,183.81,11.41310055]
[1735342979988,2.7238,183.83,183.81,11.41310055]
[1735342982097,2.7232,183.88,183.81,14.13710055]
[1735342982294,1.6852,183.9,183.83,8.19310055]
[1735342982791,2.7231,183.88,183.83,10.91690055]
[1735342983198,1.6852,183.9,183.83,8.19310055]
[1735342983399,2.7232,183.87,183.83,8.19310055]
[1735342983603,8.19310055,183.87,183.81,3.22]
[1735342983999,2.7236,183.85,183.81,3.22]
[1735342984606,8.19310055,183.87,183.81,3.22]
[1735342986499,2.7236,183.85,183.81,3.22]
[1735342987702,1.6852,183.9,183.82,8.19310055]
[1735342988002,8.19310055,183.89,183.82,8.19310055]
[1735342989203,8.19310055,183.89,183.82,11.37310055]
[1735342990504,2.7235,183.85,183.82,11.37310055]
[1735342990813,8.19310055,183.89,183.82,11.37310055]
[1735342991107,2.7244,183.79,183.75,10.75110382]
[1735342992010,2.7244,183.79,183.75,3.18]
[1735342993809,2.7246,183.78,183.75,3.18]
[1735342996411,2.7246,183.78,183.74,10.91810055]
[1735342996611,2.7246,183.78,183.75,3.18]
[1735342999010,3.18,183.89,183.77,2.7247]
[1735342999206,8.19310055,183.85,183.78,8.19310055]
[1735342999902,8.19310055,183.85,183.78,10.91760055]
[1735343000208,8.19310055,183.85,183.78,8.19310055]
[1735343001003,2.7238,183.83,183.78,8.19310055]
[1735343001208,8.19310055,183.85,183.78,8.19310055]
[1735343002412,2.724,183.82,183.78,8.19310055]
[1735343006513,2.7241,183.81,183.78,8.19310055]
[1735343009815,8.19310055,183.85,183.78,8.19310055]
[1735343010015,8.19310055,183.83,183.72,7.57110382]
[1735343010214,8.19310055,183.81,183.74,8.19310055]
[1735343011416,2.7248,183.77,183.74,8.19310055]
[1735343011616,8.19310055,183.83,183.74,8.19310055]
[1735343012510,2.7246,183.78,183.76,8.19310055]
[1735343012714,8.19310055,183.83,183.76,8.19310055]
[1735343014415,2.7243,183.8,183.76,10.91790055]
[1735343015011,8.19310055,183.83,183.74,8.19310055]
[1735343015215,8.19310055,183.83,183.75,3.18]
[1735343015621,2.7247,183.78,183.75,3.18]
[1735343015822,8.19310055,183.81,183.75,3.18]
[1735343016322,2.7246,183.78,183.75,3.18]
[1735343017818,8.19310055,183.83,183.75,3.18]
[1735343018027,2.7248,183.76,183.75,3.18]
[1735343020724,2.7242,183.81,183.75,3.18]
[1735343021024,8.19310055,183.83,183.75,3.18]
[1735343021623,2.7247,183.78,183.75,3.18]
[1735343024822,2.7244,183.8,183.76,10.91790055]
[1735343025028,11.42554526,183.9,183.78,8.19310055]
[1735343025229,8.19310055,183.89,183.82,8.19310055]
[1735343025422,2.7235,183.86,183.83,3.14]
[1735343026329,2.7235,183.85,183.83,3.14]
[1735343028228,8.19260845,183.87,183.83,3.14]
[1735343028827,8.19260845,183.87,183.85,2.7235]
[1735343029828,8.19260845,183.87,183.83,3.14]
[1735343031533,2.7236,183.85,183.83,3.14]
[1735343031733,8.19260845,183.87,183.83,3.14]
[1735343032126,2.7235,183.86,183.83,3.14]
[1735343032731,2.7235,183.85,183.83,3.14]
[1735343034632,2.7238,183.83,183.82,8.19260845]
[1735343034827,3.14,183.92,183.8,3.14]
[1735343035028,22.54533747,183.95,183.8,3.14]
[1735343035337,2.723,183.89,183.85,2.7235]
[1735343035634,2.723,183.89,183.86,3.14]
[1735343035825,2.7232,183.87,183.86,3.14]
[1735343036024,1.6001,183.95,183.86,3.14]
[1735343037133,2.7229,183.9,183.86,3.14]
[1735343039239,1.6001,183.95,183.86,3.14]
[1735343039438,2.7226,183.92,183.86,5.8633]
[1735343040742,2.7226,183.92,183.87,2.7232]
[1735343041139,2.7226,183.92,183.86,3.14]
[1735343041442,2.7226,183.92,183.86,5.8633]
[1735343042247,2.7226,183.91,183.86,5.8633]
[1735343043339,2.7224,183.93,183.87,2.7231]
[1735343044045,2.7224,183.93,183.86,3.14]
[1735343044243,2.7224,183.93,183.88,2.723]
[1735343044641,47.35926365,183.96,183.86,3.14]
[1735343044943,3.14,184.08,183.86,3.14]
[1735343045133,64.25785041,184.05,183.87,4.9425]
[1735343046148,2.7216,183.99,183.93,2.7223]
[1735343046345,2.7216,183.99,183.94,3.14]
[1735343046548,2.7225,183.92,183.9,3.14]
[1735343054343,8.077,184.05,183.9,3.14]
[1735343054951,8.077,184.05,183.93,2.7223]
[1735343055641,4.837,184.05,183.93,2.7223]
[1735343055850,0.88050897,184.04,183.93,2.7223]
[1735343056250,2.7217,183.98,183.92,2.7224]
[1735343056751,2.7217,183.98,183.9,3.14]
[1735343056752,8.077,184.05,183.9,3.14]
[1735343057047,2.7222,183.94,183.9,3.14]
[1735343057446,2.722,183.95,183.9,5.8628]
[1735343057851,8.077,184.05,183.9,3.14]
[1735343058048,0.88041841,184.04,183.9,3.14]
[1735343058745,0.88041841,184.04,183.8,86.88441528]
[1735343058949,16.35,184.03,183.81,8.1996]
[1735343059150,0.88041841,184.02,183.81,8.1996]
[1735343060249,0.88041841,184.02,183.85,2.7235]
[1735343060449,0.88041841,184.02,183.81,4.9596]
[1735343060658,2.7232,183.88,183.83,2.7238]
[1735343061050,3.24,183.96,183.83,2.7238]
[1735343061250,4.8757,183.95,183.83,2.7238]
[1735343061551,2.723,183.89,183.83,2.7238]
[1735343061747,2.723,183.89,183.84,3.24]
[1735343062446,2.723,183.89,183.83,2.7238]
[1735343062653,2.723,183.89,183.84,3.24]
[1735343062956,2.7231,183.88,183.84,3.24]
[1735343064752,2.7231,183.88,183.84,5.9636]
[1735343066155,2.7232,183.87,183.84,3.24]
[1735343066955,2.7234,183.86,183.84,3.24]
[1735343067259,4.8757,183.95,183.84,3.24]
[1735343068059,2.7225,183.92,183.84,3.24]
[1735343068256,4.8757,183.95,183.84,3.24]
[1735343069660,2.7232,183.88,183.84,3.24]
[1735343070855,2.7232,183.87,183.84,3.24]
[1735343073359,2.7225,183.92,183.86,2.7233]
[1735343073558,4.8757,183.95,183.86,2.7233]
[1735343073759,4.8757,183.95,183.84,3.24]
[1735343074263,2.7225,183.92,183.88,2.7229]
[1735343074467,2.7225,183.92,183.89,3.24]
[1735343074861,2.7223,183.93,183.89,3.24]
[1735343075056,2.7223,183.93,183.89,5.9629]
[1735343075260,2.7223,183.93,183.89,2.7229]
[1735343075461,2.7223,183.93,183.9,3.24]
[1735343075961,2.7225,183.92,183.9,3.24]
[1735343076166,1.6027,183.95,183.9,3.24]
[1735343076365,1.6027,183.95,183.86,3.24]
[1735343077361,2.7224,183.93,183.86,5.9632]
[1735343077566,1.6027,183.95,183.86,5.9632]
[1735343078462,2.7226,183.92,183.86,5.9632]
[1735343078966,2.7227,183.91,183.86,5.9632]
[1735343080757,2.7228,183.9,183.86,5.9632]
[1735343083164,1.6027,183.95,183.86,5.9632]
[1735343083371,1.6027,183.95,183.86,3.24]
[1735343083570,1.6627,183.94,183.86,3.24]
[1735343083770,2.7231,183.88,183.86,3.24]
[1735343086866,1.6627,183.94,183.86,3.24]
[1735343087067,2.723,183.89,183.86,3.24]
[1735343090275,2.723,183.89,183.86,5.9633]
[1735343094775,1.6627,183.94,183.86,5.9633]
[1735343094972,70.78414087,184.0,183.9,2.7226]
[1735343095178,62.72965041,184.0,183.86,3.24]
[1735343095568,2.7222,183.94,183.9,2.7227]
[1735343095774,2.7222,183.94,183.91,3.2]
[1735343096376,2.7218,183.97,183.92,2.7224]
[1735343098176,3.3088,184.0,183.91,3.2]
[1735343098480,2.722,183.96,183.91,3.2]
[1735343098881,2.722,183.96,183.91,5.9226]
[1735343100287,3.3088,184.0,183.91,3.2]
[1735343100483,3.3088,184.0,183.83,30.28441528]
[1735343100687,3.3088,184.0,183.84,3.2]
[1735343101581,2.7225,183.92,183.87,2.7231]
[1735343102287,2.7225,183.92,183.88,2.723]
[1735343102484,2.7225,183.92,183.88,5.923]
[1735343102886,2.7225,183.92,183.88,3.2]
[1735343104190,2.7227,183.91,183.88,3.2]
[1735343104391,3.3088,184.0,183.87,3.2]
[1735343104591,4.08134479,183.99,183.87,3.2]
[1735343104792,2.723,183.89,183.87,3.2]
[1735343105986,3.2,183.99,183.87,3.2]
[1735343106182,2.7231,183.88,183.87,3.2]
[1735343107387,17.13011552,184.0,183.87,3.2]
[1735343107589,13.0450783,184.0,183.87,3.2]
[1735343107790,3.3088,184.0,183.87,3.2]
[1735343107991,2.7224,183.93,183.88,2.723]
[1735343108292,3.3088,184.0,183.87,3.2]
[1735343108693,3.3088,184.0,183.89,2.7228]
[1735343109196,3.3088,184.0,183.87,3.2]
[1735343109388,3.3088,184.0,183.88,4.6593]
[1735343109794,1.6759,184.01,183.88,4.6593]
[1735343109988,2.7216,183.98,183.93,2.7223]
[1735343110194,2.7216,183.98,183.94,3.2]
[1735343111495,1.6759,184.01,183.94,3.2]
[1735343111885,2.722,183.96,183.94,3.2]
[1735343112086,1.6759,184.01,183.94,3.2]
[1735343113491,2.722,183.95,183.94,3.2]
[1735343113691,1.6759,184.01,183.94,3.2]
[1735343114090,5.00855561,184.05,183.94,3.2]
[1735343114287,5.00855561,184.05,183.94,5.9221]
[1735343115196,5.00855561,184.05,183.94,3.2]
[1735343116593,2.7215,183.99,183.94,3.2]
[1735343116996,5.00855561,184.05,183.94,3.2]
[1735343118302,5.00855561,184.05,183.95,3.16]
[1735343118502,2.7216,183.98,183.95,3.16]
[1735343122096,5.00855561,184.05,183.9,2.7227]
[1735343122303,3.16,184.03,183.91,3.16]
[1735343123098,0.88011654,184.02,183.91,3.16]
[1735343123299,2.7225,183.92,183.91,3.16]
[1735343125706,2.7225,183.92,183.88,4.6593]
[1735343126009,2.7225,183.92,183.9,3.16]
[1735343126411,2.7226,183.91,183.9,3.16]
[1735343126606,16.35,184.02,183.82,56.58]
[1735343126805,16.35,184.0,183.83,3.16]
[1735343127007,2.51240693,183.99,183.83,3.16]
[1735343127305,2.7234,183.86,183.83,3.16]
[1735343127708,2.7238,183.83,183.81,10.96120382]
[1735343128008,2.7238,183.83,183.82,3.16]
[1735343128603,2.7234,183.86,183.82,3.16]
[1735343128807,3.16,183.96,183.82,3.16]
[1735343129405,2.7232,183.88,183.82,3.16]
[1735343130006,2.7232,183.88,183.82,5.8838]
[1735343130510,2.7232,183.87,183.82,5.8838]
[1735343132715,3.2072,183.98,183.82,3.16]
[1735343132908,3.2072,183.98,183.83,1.5484]
[1735343133108,2.7225,183.92,183.87,2.7232]
[1735343133307,2.7225,183.92,183.88,3.16]
[1735343136311,3.2072,183.98,183.88,3.16]
[1735343137021,2.7226,183.92,183.88,3.16]
[1735343138323,3.2072,183.98,183.88,3.16]
[1735343138324,2.7226,183.91,183.88,3.16]
[1735343138722,3.2072,183.98,183.88,3.16]
[1735343138918,2.7228,183.9,183.88,3.16]
[1735343140725,2.7229,183.89,183.88,3.16]
[1735343141714,3.2072,183.98,183.88,3.16]
[1735343141715,2.7228,183.9,183.88,3.16]
[1735343143219,3.2072,183.98,183.89,2.7229]
[1735343144430,2.7223,183.94,183.89,2.7229]
[1735343144615,3.14,183.97,183.81,7.57110382]
[1735343144821,3.14,183.97,183.81,10.71110382]
[1735343145019,2.7231,183.88,183.81,10.71110382]
[1735343145422,3.14,183.97,183.85,2.7235]
[1735343145626,3.14,183.97,183.86,3.14]
[1735343146222,3.14,183.97,183.86,5.8633]
[1735343146819,2.7228,183.91,183.86,5.8633]
[1735343147017,3.14,183.97,183.86,3.14]
[1735343147527,2.7227,183.91,183.86,3.14]
[1735343148929,3.14,183.97,183.86,3.14]
[1735343149120,2.7228,183.9,183.86,3.14]
[1735343151025,3.2072,183.98,183.86,3.14]
[1735343151228,2.7232,183.87,183.83,2.7237]
[1735343151421,2.7232,183.87,183.84,3.14]
[1735343152328,2.7234,183.86,183.84,3.14]
[1735343152527,19.5572,183.98,183.8,4.8043]
[1735343152727,0.88046334,183.97,183.81,3.14]
[1735343153123,5.444,183.96,183.81,3.14]
[1735343153320,2.7236,183.85,183.8,4.8043]
[1735343153528,2.7236,183.85,183.81,3.14]
[1735343154631,2.7232,183.88,183.81,3.14]
[1735343155226,2.7233,183.87,183.83,2.7238]
[1735343157731,2.723,183.89,183.81,3.14]
[1735343157934,6.3472,183.98,183.81,3.14]
[1735343158131,0.8805512,183.97,183.81,3.14]
[1735343158328,2.723,183.89,183.84,2.7235]
[1735343159133,2.723,183.89,183.81,3.14]
[1735343159430,2.723,183.89,183.85,2.7235]
[1735343159633,2.723,183.89,183.86,3.14]
[1735343160633,3.2072,183.98,183.86,3.14]
[1735343160832,1.632,183.99,183.87,4.7182]
[1735343161031,2.7216,183.98,183.93,2.7222]
[1735343161333,2.7216,183.98,183.94,3.14]
[1735343161537,59.42085041,184.02,183.94,3.14]
[1735343162034,4.863,184.04,183.94,3.14]
[1735343163828,2.7215,183.99,183.94,3.14]
[1735343164831,4.863,184.04,183.94,3.14]
[1735343165433,2.722,183.95,183.94,3.14]
[1735343166930,2.7219,183.96,183.94,3.14]
[1735343167634,4.863,184.04,183.94,3.14]
[1735343168231,2.721,184.03,183.97,2.7217]
[1735343168631,4.863,184.04,183.97,2.7217]
[1735343169535,1.87125561,184.05,183.94,3.14]
[1735343169742,1.87125561,184.05,183.98,2.7215]
[1735343169934,1.87125561,184.05,183.99,3.14]
[1735343170729,2.7213,184.0,183.99,3.14]
[1735343171738,2.7211,184.02,183.99,3.14]
[1735343171934,1.87125561,184.05,183.99,3.14]
[1735343173333,2.721,184.03,183.99,3.14]
[1735343174136,1.87125561,184.05,183.99,3.14]
[1735343174336,2.721,184.02,183.99,3.14]
[1735343175335,1.87125561,184.05,183.97,3.16]
[1735343175536,1.87125561,184.05,183.94,3.16]
[1735343175937,2.7221,183.95,183.93,3.16]
[1735343177442,2.7222,183.94,183.93,3.16]
[1735343177642,2.7222,183.94,183.91,3.16]
[1735343177937,3.16,184.01,183.91,3.16]
[1735343178141,4.8786,184.0,183.91,3.16]
[1735343178642,2.7224,183.93,183.91,3.16]
[1735343178837,4.8786,184.0,183.9,3.16]
[1735343179142,2.7227,183.91,183.9,3.16]
[1735343179345,4.8786,184.0,183.89,3.16]
[1735343179536,2.723,183.89,183.87,3.16]
[1735343179736,21.2286,184.0,183.85,3.16]
[1735343179936,0.88273796,183.99,183.85,3.16]
[1735343180338,0.88273796,183.99,183.81,3.1765]
[1735343180538,0.88273796,183.99,183.82,3.16]
[1735343181241,2.7222,183.94,183.82,3.16]
[1735343181443,1.7023,183.93,183.82,3.16]
[1735343181844,2.7232,183.88,183.82,2.7239]
[1735343182045,3.2208,183.92,183.83,3.16]
[1735343182441,2.7234,183.86,183.83,3.16]
[1735343182648,3.2208,183.92,183.79,1.7094]
[1735343182649,3.2208,183.92,183.82,3.16]
[1735343183246,2.7233,183.87,183.82,3.16]
[1735343184645,3.2208,183.92,183.82,3.16]
[1735343185950,2.7229,183.89,183.82,3.16]
[1735343186145,3.2208,183.92,183.82,3.16]
[1735343186548,2.723,183.89,183.83,2.7238]
[1735343187452,2.723,183.89,183.84,2.7236]
[1735343188250,1.7023,183.93,183.84,2.7236]
[1735343188453,2.7228,183.9,183.84,2.7236]
[1735343188752,1.7023,183.93,183.84,2.7236]
[1735343189450,1.7023,183.93,183.82,3.16]
[1735343189652,2.7229,183.89,183.83,2.7238]
[1735343191647,2.7231,183.88,183.83,2.7238]
[1735343191843,2.7231,183.88,183.82,3.16]
[1735343192154,2.7231,183.88,183.84,2.7236]
[1735343196162,2.7237,183.84,183.83,1.6398]
[1735343196461,1.7023,183.93,183.82,3.16]
[1735343197060,1.7023,183.93,183.84,2.7235]
[1735343197061,2.723,183.89,183.84,2.7235]
[1735343197657,2.7231,183.88,183.84,2.7235]
[1735343198560,2.7233,183.87,183.83,2.7238]
[1735343199259,1.7023,183.93,183.82,3.16]
[1735343199561,2.7236,183.85,183.82,3.16]
[1735343199857,1.7023,183.93,183.82,3.16]
[1735343200552,2.7235,183.86,183.82,5.8839]
[1735343202462,2.7235,183.86,183.82,2.7239]
[1735343202663,1.7023,183.93,183.83,3.16]
[1735343202860,3.2825,183.92,183.83,3.16]
[1735343203066,3.2825,183.92,183.79,1.7094]
[1735343203265,3.2825,183.92,183.83,3.16]
[1735343204159,2.7233,183.87,183.83,3.16]
[1735343205167,3.2825,183.92,183.83,3.16]
[1735343205368,2.7234,183.86,183.83,3.16]
[1735343208270,3.2825,183.92,183.79,1.7094]
[1735343208466,3.2641,183.97,183.8,3.16]
[1735343208868,2.7228,183.91,183.86,2.7232]
[1735343209069,3.2641,183.97,183.87,3.16]
[1735343209269,3.2641,183.97,183.88,3.16]
[1735343209467,2.7226,183.92,183.88,3.16]
[1735343209870,3.2641,183.97,183.79,1.7094]
[1735343210071,3.2641,183.97,183.8,3.16]
[1735343210672,3.2641,183.97,183.83,2.7238]
[1735343210872,6.4241,183.97,183.79,1.7094]
[1735343211067,0.88299792,183.96,183.8,3.16]
[1735343211271,2.7239,183.83,183.8,3.16]